[Event "*** Titled Tuesday Blitz"]
[Site "Chess.com"]
[Date "2021.04.20"]
[Round "5"]
[White "chess94cu"]
[Black "MFguimaraes"]
[Result "1/2-1/2"]
[WhiteElo "2590"]
[BlackElo "2415"]
[TimeControl "180+1"]
[EndTime "10:58:07 PDT"]
[Termination "Game drawn - insufficient material"]

1. e4 {[%clk 0:03:00.9]} 1... d6 {[%clk 0:02:41.9]} 2. d4 {[%clk 0:02:58.4]}
2... g6 {[%clk 0:02:40.6]} 3. Nc3 {[%clk 0:02:58.6]} 3... Bg7 {[%clk 0:02:40.4]}
4. Nf3 {[%clk 0:02:58.6]} 4... Bg4 {[%clk 0:02:40.2]} 5. Be3 {[%clk 0:02:57.3]}
5... Nc6 {[%clk 0:02:39.3]} 6. Be2 {[%clk 0:02:55.9]} 6... Bxf3 {[%clk
0:02:34.7]} 7. Bxf3 {[%clk 0:02:55.1]} 7... e5 {[%clk 0:02:35.6]} 8. dxe5 {[%clk
0:02:54.1]} 8... Nxe5 {[%clk 0:02:29]} 9. Be2 {[%clk 0:02:52.9]} 9... Nf6 {[%clk
0:02:29.4]} 10. O-O {[%clk 0:02:49.5]} 10... h5 {[%clk 0:02:28]} 11. Bg5 {[%clk
0:02:32.1]} 11... Qd7 {[%clk 0:02:21]} 12. Qd2 {[%clk 0:02:20.2]} 12... c6
{[%clk 0:02:15.7]} 13. Rfd1 {[%clk 0:02:16.7]} 13... Rd8 {[%clk 0:02:15.5]} 14.
Qd4 {[%clk 0:02:09.8]} 14... b6 {[%clk 0:02:13.8]} 15. a4 {[%clk 0:02:06.3]}
15... Nh7 {[%clk 0:02:10.3]} 16. Qd2 {[%clk 0:01:57.9]} 16... Nxg5 {[%clk
0:02:10]} 17. Qxg5 {[%clk 0:01:58.8]} 17... Qe7 {[%clk 0:01:55.6]} 18. Qe3
{[%clk 0:01:24.5]} 18... Bh6 {[%clk 0:01:50.1]} 19. Qd4 {[%clk 0:01:23.7]} 19...
Bg7 {[%clk 0:01:49.6]} 20. Qe3 {[%clk 0:01:21.6]} 20... Bh6 {[%clk 0:01:49.1]}
21. Qg3 {[%clk 0:01:21.7]} 21... h4 {[%clk 0:01:46.3]} 22. Qh3 {[%clk
0:01:20.5]} 22... g5 {[%clk 0:01:44.8]} 23. Bg4 {[%clk 0:01:18]} 23... Nxg4
{[%clk 0:01:33.5]} 24. Qxg4 {[%clk 0:01:16.4]} 24... Qe6 {[%clk 0:01:34.1]} 25.
Qxe6+ {[%clk 0:01:04.7]} 25... fxe6 {[%clk 0:01:35]} 26. Rd3 {[%clk 0:01:05.4]}
26... Bg7 {[%clk 0:01:31.5]} 27. Rad1 {[%clk 0:01:04]} 27... Ke7 {[%clk
0:01:31.4]} 28. h3 {[%clk 0:00:59.9]} 28... Be5 {[%clk 0:01:27.3]} 29. Re1
{[%clk 0:00:57.3]} 29... Rhf8 {[%clk 0:01:24.9]} 30. Nd1 {[%clk 0:00:57]} 30...
c5 {[%clk 0:01:20.8]} 31. c3 {[%clk 0:00:56.9]} 31... a6 {[%clk 0:01:17.9]} 32.
Ne3 {[%clk 0:00:57]} 32... b5 {[%clk 0:01:17.1]} 33. Ra1 {[%clk 0:00:54.1]}
33... Ra8 {[%clk 0:01:00.3]} 34. Rdd1 {[%clk 0:00:52.8]} 34... Rfb8 {[%clk
0:00:58.1]} 35. Ra2 {[%clk 0:00:50]} 35... b4 {[%clk 0:00:57.5]} 36. cxb4 {[%clk
0:00:48]} 36... Rxb4 {[%clk 0:00:56.4]} 37. b3 {[%clk 0:00:40]} 37... Rxe4
{[%clk 0:00:48.4]} 38. Nc4 {[%clk 0:00:39.6]} 38... Bd4 {[%clk 0:00:46.3]} 39.
Kf1 {[%clk 0:00:32.9]} 39... Rf8 {[%clk 0:00:45.3]} 40. Re1 {[%clk 0:00:31.8]}
40... Ref4 {[%clk 0:00:41.5]} 41. Ree2 {[%clk 0:00:31.2]} 41... d5 {[%clk
0:00:37.1]} 42. Ne5 {[%clk 0:00:30.7]} 42... Bxe5 {[%clk 0:00:34.6]} 43. Rxe5
{[%clk 0:00:31.2]} 43... R8f5 {[%clk 0:00:33.1]} 44. Re3 {[%clk 0:00:31]} 44...
g4 {[%clk 0:00:30.6]} 45. hxg4 {[%clk 0:00:30]} 45... Rxg4 {[%clk 0:00:31.5]}
46. Rae2 {[%clk 0:00:30.2]} 46... Rf6 {[%clk 0:00:29.6]} 47. Rc3 {[%clk
0:00:29.4]} 47... Kd6 {[%clk 0:00:29.6]} 48. Rec2 {[%clk 0:00:29.5]} 48... Rfg6
{[%clk 0:00:26.9]} 49. Rxc5 {[%clk 0:00:25.5]} 49... Rxg2 {[%clk 0:00:26.4]} 50.
Rc6+ {[%clk 0:00:26]} 50... Ke5 {[%clk 0:00:26.2]} 51. Re2+ {[%clk 0:00:25.5]}
51... Kf5 {[%clk 0:00:24.2]} 52. Re3 {[%clk 0:00:25.6]} 52... R2g4 {[%clk
0:00:18.9]} 53. Rxa6 {[%clk 0:00:24.5]} 53... Rb4 {[%clk 0:00:18.7]} 54. Rf3+
{[%clk 0:00:23.2]} 54... Ke5 {[%clk 0:00:18.5]} 55. Re3+ {[%clk 0:00:23.1]}
55... Kf5 {[%clk 0:00:18.8]} 56. Rc6 {[%clk 0:00:20.9]} 56... Rh6 {[%clk
0:00:17.4]} 57. Rh3 {[%clk 0:00:19.7]} 57... Rh7 {[%clk 0:00:15]} 58. a5 {[%clk
0:00:19.2]} 58... Rb5 {[%clk 0:00:13.9]} 59. a6 {[%clk 0:00:19.1]} 59... Ra5
{[%clk 0:00:14.2]} 60. Rf3+ {[%clk 0:00:19.3]} 60... Ke5 {[%clk 0:00:13.9]} 61.
Re3+ {[%clk 0:00:19.6]} 61... Kd4 {[%clk 0:00:14.5]} 62. Rexe6 {[%clk
0:00:19.3]} 62... h3 {[%clk 0:00:14.6]} 63. Rh6 {[%clk 0:00:19.9]} 63... Re7
{[%clk 0:00:10.9]} 64. Rxh3 {[%clk 0:00:18.5]} 64... Ra1+ {[%clk 0:00:11.8]} 65.
Kg2 {[%clk 0:00:18.1]} 65... Rg7+ {[%clk 0:00:12.4]} 66. Rg3 {[%clk 0:00:18.3]}
66... Rf7 {[%clk 0:00:12.5]} 67. Rd6 {[%clk 0:00:18.3]} 67... Kc5 {[%clk
0:00:12.2]} 68. Re6 {[%clk 0:00:12.2]} 68... Ra2 {[%clk 0:00:12.3]} 69. Rf3
{[%clk 0:00:12.2]} 69... Rg7+ {[%clk 0:00:12.7]} 70. Kh3 {[%clk 0:00:12.2]}
70... Rh7+ {[%clk 0:00:13.1]} 71. Kg3 {[%clk 0:00:12.7]} 71... Rg7+ {[%clk
0:00:13.4]} 72. Kf4 {[%clk 0:00:11.5]} 72... Rf7+ {[%clk 0:00:12.8]} 73. Kg4
{[%clk 0:00:12.1]} 73... Rg7+ {[%clk 0:00:12]} 74. Kf5 {[%clk 0:00:12.5]} 74...
Rg2 {[%clk 0:00:10.2]} 75. a7 {[%clk 0:00:07]} 75... Rgxf2 {[%clk 0:00:09.2]}
76. Rxf2 {[%clk 0:00:03.9]} 76... Rxf2+ {[%clk 0:00:10.1]} 77. Ke5 {[%clk
0:00:04.4]} 77... Ra2 {[%clk 0:00:10]} 78. Re7 {[%clk 0:00:03.5]} 78... d4
{[%clk 0:00:10.3]} 79. Rc7+ {[%clk 0:00:02]} 79... Kb6 {[%clk 0:00:10.3]} 80.
Rc4 {[%clk 0:00:02.6]} 80... Rxa7 {[%clk 0:00:09.8]} 81. Rxd4 {[%clk 0:00:02.2]}
81... Kb5 {[%clk 0:00:10.3]} 82. Ke4 {[%clk 0:00:02.3]} 82... Rc7 {[%clk
0:00:10]} 83. Kd3 {[%clk 0:00:02.7]} 83... Rc6 {[%clk 0:00:10.1]} 84. Re4 {[%clk
0:00:02]} 84... Rf6 {[%clk 0:00:10.3]} 85. Rd4 {[%clk 0:00:02.4]} 85... Kb6
{[%clk 0:00:11.2]} 86. Kc3 {[%clk 0:00:02.6]} 86... Rc6+ {[%clk 0:00:12]} 87.
Kb4 {[%clk 0:00:02.7]} 87... Rc1 {[%clk 0:00:11.9]} 88. Rc4 {[%clk 0:00:03.6]}
88... Rb1 {[%clk 0:00:11.5]} 89. Rh4 {[%clk 0:00:02.9]} 89... Rf1 {[%clk
0:00:11.8]} 90. Rh6+ {[%clk 0:00:03.5]} 90... Kb7 {[%clk 0:00:12.4]} 91. Ka4
{[%clk 0:00:03.4]} 91... Ra1+ {[%clk 0:00:11.5]} 92. Kb5 {[%clk 0:00:03.6]}
92... Rf1 {[%clk 0:00:12.4]} 93. b4 {[%clk 0:00:04]} 93... Rf5+ {[%clk
0:00:11.5]} 94. Ka4 {[%clk 0:00:03.9]} 94... Rg5 {[%clk 0:00:12.3]} 95. b5
{[%clk 0:00:03.5]} 95... Rg1 {[%clk 0:00:12.5]} 96. Ka5 {[%clk 0:00:03.3]} 96...
Ra1+ {[%clk 0:00:12.9]} 97. Kb4 {[%clk 0:00:03.5]} 97... Rb1+ {[%clk 0:00:13.8]}
98. Ka4 {[%clk 0:00:03.5]} 98... Ra1+ {[%clk 0:00:13.9]} 99. Kb3 {[%clk
0:00:04.1]} 99... Rb1+ {[%clk 0:00:14.8]} 100. Kc4 {[%clk 0:00:04.1]} 100...
Rc1+ {[%clk 0:00:14.9]} 101. Kd3 {[%clk 0:00:04.5]} 101... Rb1 {[%clk
0:00:14.1]} 102. Kc4 {[%clk 0:00:04.7]} 102... Rc1+ {[%clk 0:00:14.3]} 103. Kb4
{[%clk 0:00:04.8]} 103... Rb1+ {[%clk 0:00:14.3]} 104. Kc5 {[%clk 0:00:05.7]}
104... Rc1+ {[%clk 0:00:14.5]} 105. Kd4 {[%clk 0:00:05.8]} 105... Rd1+ {[%clk
0:00:14.1]} 106. Kc3 {[%clk 0:00:05.6]} 106... Rb1 {[%clk 0:00:13.7]} 107. Rh5
{[%clk 0:00:06.1]} 107... Kb6 {[%clk 0:00:12.7]} 108. Kc4 {[%clk 0:00:06.2]}
108... Rc1+ {[%clk 0:00:13]} 109. Kb4 {[%clk 0:00:06.5]} 109... Rb1+ {[%clk
0:00:12.4]} 110. Kc3 {[%clk 0:00:06.8]} 110... Rxb5 {[%clk 0:00:12.1]} 111.
Rxb5+ {[%clk 0:00:07.7]} 111... Kxb5 {[%clk 0:00:12.9]} 1/2-1/2

[Event "*** Titled Tuesday Blitz"]
[Site "Chess.com"]
[Date "2021.04.20"]
[Round "6"]
[White "ChessAdvanceUSA"]
[Black "cukin84"]
[Result "0-1"]
[WhiteElo "2307"]
[BlackElo "2137"]
[TimeControl "180+1"]
[EndTime "11:00:21 PDT"]
[Termination "cukin84 won by resignation"]

1. Nc3 {[%clk 0:02:56.5]} 1... f5 {[%clk 0:02:57.6]} 2. d4 {[%clk 0:02:52]} 2...
Nf6 {[%clk 0:02:57.3]} 3. e4 {[%clk 0:02:52.4]} 3... fxe4 {[%clk 0:02:56.9]} 4.
f3 {[%clk 0:02:49.8]} 4... d5 {[%clk 0:02:55.4]} 5. Bg5 {[%clk 0:02:49]} 5...
Nc6 {[%clk 0:02:48.7]} 6. Bb5 {[%clk 0:02:47]} 6... Bf5 {[%clk 0:02:42.2]} 7.
fxe4 {[%clk 0:02:36.9]} 7... Nxe4 {[%clk 0:02:37.3]} 8. Nxe4 {[%clk 0:02:34.5]}
8... Bxe4 {[%clk 0:02:36.8]} 9. Nf3 {[%clk 0:02:34.5]} 9... Qd6 {[%clk
0:02:30.5]} 10. Ne5 {[%clk 0:02:28]} 10... Qb4+ {[%clk 0:02:29.6]} 11. c3 {[%clk
0:02:23.1]} 11... Qxb5 {[%clk 0:02:29.6]} 0-1

[Event "*** Titled Tuesday Blitz"]
[Site "Chess.com"]
[Date "2021.04.20"]
[Round "6"]
[White "kinga2008"]
[Black "akanga001"]
[Result "1-0"]
[WhiteElo "2199"]
[BlackElo "1993"]
[TimeControl "180+1"]
[EndTime "11:00:54 PDT"]
[Termination "kinga2008 won by resignation"]

1. e4 {[%clk 0:03:00.9]} 1... c6 {[%clk 0:02:59.7]} 2. d4 {[%clk 0:02:59.5]}
2... d5 {[%clk 0:03:00.6]} 3. e5 {[%clk 0:02:58.8]} 3... Bf5 {[%clk 0:02:59.7]}
4. Nc3 {[%clk 0:02:55.6]} 4... e6 {[%clk 0:02:59.3]} 5. g4 {[%clk 0:02:54.3]}
5... Bg6 {[%clk 0:02:59.3]} 6. Nge2 {[%clk 0:02:53.7]} 6... Bb4 {[%clk 0:02:59]}
7. h4 {[%clk 0:02:52.9]} 7... Be4 {[%clk 0:02:55.7]} 8. Rh3 {[%clk 0:02:49.4]}
8... c5 {[%clk 0:02:56.1]} 9. f3 {[%clk 0:02:47.4]} 9... cxd4 {[%clk 0:02:49.3]}
10. Nxd4 {[%clk 0:02:45.2]} 10... Ne7 {[%clk 0:02:27.4]} 11. fxe4 {[%clk
0:02:43]} 11... dxe4 {[%clk 0:02:25.3]} 12. Bg5 {[%clk 0:02:39.5]} 12... Nbc6
{[%clk 0:02:22.2]} 13. Nxc6 {[%clk 0:02:37.8]} 13... bxc6 {[%clk 0:02:21.3]} 14.
a3 {[%clk 0:02:35.7]} 14... Bc5 {[%clk 0:02:17.7]} 15. Nxe4 {[%clk 0:02:32.5]}
15... Qb6 {[%clk 0:02:09.6]} 16. Nd6+ {[%clk 0:02:30.8]} 16... Bxd6 {[%clk
0:02:08.7]} 17. Qxd6 {[%clk 0:02:29]} 17... Nd5 {[%clk 0:02:09.3]} 18. c4 {[%clk
0:02:25.7]} 18... Rd8 {[%clk 0:02:05.4]} 19. Bxd8 {[%clk 0:02:23.2]} 19... Qxd8
{[%clk 0:02:05.2]} 20. Qxd8+ {[%clk 0:02:22.3]} 20... Kxd8 {[%clk 0:02:06.1]}
21. cxd5 {[%clk 0:02:23.1]} 1-0

[Event "*** Titled Tuesday Blitz"]
[Site "Chess.com"]
[Date "2021.04.20"]
[Round "6"]
[White "JakubPulpan"]
[Black "suyu28"]
[Result "1-0"]
[WhiteElo "2751"]
[BlackElo "2605"]
[TimeControl "180+1"]
[EndTime "11:01:59 PDT"]
[Termination "JakubPulpan won by resignation"]

1. Nf3 {[%clk 0:03:00.9]} 1... f5 {[%clk 0:02:59]} 2. d3 {[%clk 0:02:59.8]} 2...
Nf6 {[%clk 0:02:59.4]} 3. e4 {[%clk 0:02:59.2]} 3... d6 {[%clk 0:03:00.1]} 4.
exf5 {[%clk 0:02:59]} 4... Bxf5 {[%clk 0:02:59.8]} 5. d4 {[%clk 0:02:59.9]} 5...
g6 {[%clk 0:02:57.5]} 6. Bd3 {[%clk 0:02:58.4]} 6... Bg7 {[%clk 0:02:57]} 7.
Bxf5 {[%clk 0:02:55]} 7... gxf5 {[%clk 0:02:56.9]} 8. Ng5 {[%clk 0:02:55.9]}
8... Qd7 {[%clk 0:02:50]} 9. d5 {[%clk 0:02:55.2]} 9... c6 {[%clk 0:02:40.8]}
10. Ne6 {[%clk 0:02:53.6]} 10... Rg8 {[%clk 0:02:38.9]} 11. c4 {[%clk
0:02:49.8]} 11... b5 {[%clk 0:02:37.9]} 12. Bg5 {[%clk 0:02:36.4]} 12... bxc4
{[%clk 0:02:30.2]} 13. Bxf6 {[%clk 0:02:35.9]} 13... exf6 {[%clk 0:02:24.8]} 14.
Qh5+ {[%clk 0:02:28.6]} 14... Qf7 {[%clk 0:02:11.2]} 15. Nc7+ {[%clk 0:02:14.6]}
15... Ke7 {[%clk 0:02:11]} 16. Qxf7+ {[%clk 0:02:15.5]} 16... Kxf7 {[%clk
0:02:11.9]} 17. Nxa8 {[%clk 0:02:15.7]} 17... Rc8 {[%clk 0:02:12.1]} 18. Nc3
{[%clk 0:02:14.1]} 18... Na6 {[%clk 0:02:03.2]} 19. dxc6 {[%clk 0:02:10.2]}
19... Rxa8 {[%clk 0:02:01.4]} 20. O-O-O {[%clk 0:02:09.5]} 20... Bf8 {[%clk
0:02:00.7]} 21. Nd5 {[%clk 0:02:07.2]} 21... Nc5 {[%clk 0:01:57.7]} 22. Rhe1
{[%clk 0:02:01.2]} 22... Rc8 {[%clk 0:01:54.2]} 23. c7 {[%clk 0:01:57.5]} 23...
Nd7 {[%clk 0:01:46]} 24. Rd4 {[%clk 0:01:55.2]} 24... Ne5 {[%clk 0:01:45]} 25.
f4 {[%clk 0:01:54.6]} 25... Nd3+ {[%clk 0:01:41.7]} 26. Rxd3 {[%clk 0:01:55]}
26... cxd3 {[%clk 0:01:42.6]} 27. Kd2 {[%clk 0:01:55.5]} 1-0

[Event "*** Titled Tuesday Blitz"]
[Site "Chess.com"]
[Date "2021.04.20"]
[Round "6"]
[White "Agnes66678"]
[Black "OlifantCZ"]
[Result "1-0"]
[WhiteElo "2457"]
[BlackElo "2257"]
[TimeControl "180+1"]
[EndTime "11:02:02 PDT"]
[Termination "Agnes66678 won by resignation"]

1. d4 {[%clk 0:03:00.9]} 1... Nf6 {[%clk 0:02:59.3]} 2. c4 {[%clk 0:02:59]} 2...
g6 {[%clk 0:02:59.8]} 3. Nf3 {[%clk 0:02:57.1]} 3... Bg7 {[%clk 0:03:00.1]} 4.
g3 {[%clk 0:02:57.4]} 4... O-O {[%clk 0:03:00.6]} 5. Bg2 {[%clk 0:02:57.4]} 5...
Nc6 {[%clk 0:03:00.1]} 6. O-O {[%clk 0:02:56.9]} 6... d6 {[%clk 0:03:00.2]} 7.
Nc3 {[%clk 0:02:56.5]} 7... a6 {[%clk 0:03:00]} 8. h3 {[%clk 0:02:52.4]} 8...
Bd7 {[%clk 0:02:58.4]} 9. e4 {[%clk 0:02:48.8]} 9... Qc8 {[%clk 0:02:55.8]} 10.
Kh2 {[%clk 0:02:48.2]} 10... e5 {[%clk 0:02:54.1]} 11. d5 {[%clk 0:02:43.9]}
11... Ne7 {[%clk 0:02:53.6]} 12. Ne1 {[%clk 0:02:43.9]} 12... Ne8 {[%clk
0:02:50.4]} 13. Nd3 {[%clk 0:02:43.5]} 13... f5 {[%clk 0:02:50]} 14. Bg5 {[%clk
0:02:42.7]} 14... Nf6 {[%clk 0:02:46.7]} 15. Bxf6 {[%clk 0:02:42.2]} 15... Bxf6
{[%clk 0:02:46.7]} 16. f4 {[%clk 0:02:38.7]} 16... exf4 {[%clk 0:02:34]} 17.
Nxf4 {[%clk 0:02:30.8]} 17... Bxc3 {[%clk 0:02:32.7]} 18. bxc3 {[%clk
0:02:27.7]} 18... b5 {[%clk 0:02:30.2]} 19. exf5 {[%clk 0:02:16.4]} 19... Bxf5
{[%clk 0:02:28.7]} 20. Qe2 {[%clk 0:02:14.5]} 20... bxc4 {[%clk 0:02:23.5]} 21.
Qxe7 {[%clk 0:02:08.2]} 21... Re8 {[%clk 0:02:11.9]} 22. Qg5 {[%clk 0:01:50.1]}
22... Rb8 {[%clk 0:02:09.5]} 23. g4 {[%clk 0:01:44.9]} 23... Bd7 {[%clk
0:02:08.9]} 24. Nxg6 {[%clk 0:01:42.8]} 1-0

[Event "*** Titled Tuesday Blitz"]
[Site "Chess.com"]
[Date "2021.04.20"]
[Round "6"]
[White "Ze-Pequeno"]
[Black "atwalcb"]
[Result "0-1"]
[WhiteElo "2247"]
[BlackElo "2456"]
[TimeControl "180+1"]
[EndTime "11:02:06 PDT"]
[Termination "atwalcb won by resignation"]

1. e4 {[%clk 0:03:00.9]} 1... e5 {[%clk 0:02:38.9]} 2. Nf3 {[%clk 0:02:58.9]}
2... Nc6 {[%clk 0:02:37.9]} 3. Nc3 {[%clk 0:02:59]} 3... Nf6 {[%clk 0:02:37.5]}
4. d4 {[%clk 0:02:59.2]} 4... exd4 {[%clk 0:02:37.1]} 5. Nxd4 {[%clk 0:03:00.1]}
5... Bb4 {[%clk 0:02:37.6]} 6. Nxc6 {[%clk 0:03:00.4]} 6... bxc6 {[%clk
0:02:38.5]} 7. Bd3 {[%clk 0:03:01.3]} 7... d5 {[%clk 0:02:38.8]} 8. exd5 {[%clk
0:03:02.2]} 8... Qe7+ {[%clk 0:02:39.4]} 9. Qe2 {[%clk 0:03:01.9]} 9... Qxe2+
{[%clk 0:02:39.9]} 10. Kxe2 {[%clk 0:03:01.1]} 10... cxd5 {[%clk 0:02:40.8]} 11.
Bd2 {[%clk 0:02:47.7]} 11... c6 {[%clk 0:02:14.4]} 12. a3 {[%clk 0:02:44.8]}
12... Bd6 {[%clk 0:02:11.7]} 13. h3 {[%clk 0:02:34.6]} 13... O-O {[%clk
0:02:10.1]} 14. Rhe1 {[%clk 0:02:32.1]} 14... Bd7 {[%clk 0:02:08.4]} 15. Kf3
{[%clk 0:02:28.2]} 15... Rab8 {[%clk 0:01:54.3]} 16. b4 {[%clk 0:02:25.7]} 16...
c5 {[%clk 0:01:49.9]} 17. bxc5 {[%clk 0:02:23.8]} 17... Bxc5 {[%clk 0:01:50.8]}
18. Rab1 {[%clk 0:02:24.3]} 18... Bxa3 {[%clk 0:01:47.7]} 19. Ra1 {[%clk
0:02:22.7]} 19... Bc5 {[%clk 0:01:45.3]} 20. Na4 {[%clk 0:02:23.2]} 20... Bd4
{[%clk 0:01:40.2]} 21. c3 {[%clk 0:02:22.9]} 21... Bb6 {[%clk 0:01:40]} 22. Nxb6
{[%clk 0:02:22]} 22... axb6 {[%clk 0:01:40.9]} 23. Ra7 {[%clk 0:02:21.4]} 23...
Be6 {[%clk 0:01:38.5]} 24. Rb1 {[%clk 0:02:13.5]} 24... Nd7 {[%clk 0:01:38.9]}
25. Be3 {[%clk 0:02:01]} 25... Ne5+ {[%clk 0:01:31.1]} 26. Ke2 {[%clk
0:02:00.5]} 26... Nxd3 {[%clk 0:01:32]} 27. Kxd3 {[%clk 0:02:01.4]} 27... Bf5+
{[%clk 0:01:32.1]} 0-1

[Event "*** Titled Tuesday Blitz"]
[Site "Chess.com"]
[Date "2021.04.20"]
[Round "6"]
[White "ShahMatKanal"]
[Black "maxip32"]
[Result "1-0"]
[WhiteElo "2412"]
[BlackElo "2519"]
[TimeControl "180+1"]
[EndTime "11:02:11 PDT"]
[Termination "ShahMatKanal won by resignation"]

1. c4 {[%clk 0:02:55.6]} 1... g6 {[%clk 0:02:59.2]} 2. Nc3 {[%clk 0:02:53.9]}
2... Bg7 {[%clk 0:02:59.2]} 3. e4 {[%clk 0:02:53.6]} 3... d6 {[%clk 0:02:58.1]}
4. d4 {[%clk 0:02:53.5]} 4... Nf6 {[%clk 0:02:57.9]} 5. Be2 {[%clk 0:02:53.3]}
5... O-O {[%clk 0:02:57.4]} 6. Nf3 {[%clk 0:02:53.5]} 6... Na6 {[%clk
0:02:56.4]} 7. O-O {[%clk 0:02:52.9]} 7... e5 {[%clk 0:02:56.5]} 8. d5 {[%clk
0:02:52.6]} 8... Nc5 {[%clk 0:02:56.2]} 9. Qc2 {[%clk 0:02:53.1]} 9... a5 {[%clk
0:02:55.5]} 10. Bg5 {[%clk 0:02:53.3]} 10... h6 {[%clk 0:02:54.5]} 11. Be3
{[%clk 0:02:53.1]} 11... Nfd7 {[%clk 0:02:44.6]} 12. Nd2 {[%clk 0:02:45.3]}
12... f5 {[%clk 0:02:42.6]} 13. exf5 {[%clk 0:02:46.2]} 13... gxf5 {[%clk
0:02:40.3]} 14. f4 {[%clk 0:02:46.7]} 14... b6 {[%clk 0:02:34.6]} 15. fxe5
{[%clk 0:02:26.6]} 15... Nxe5 {[%clk 0:02:32.6]} 16. h3 {[%clk 0:02:06.2]} 16...
Bd7 {[%clk 0:02:20.5]} 17. Nf3 {[%clk 0:02:04]} 17... Nxf3+ {[%clk 0:02:09.6]}
18. Rxf3 {[%clk 0:01:55.3]} 18... Qe7 {[%clk 0:02:08.7]} 19. Raf1 {[%clk
0:01:35.1]} 19... Rae8 {[%clk 0:02:07.4]} 20. Bf4 {[%clk 0:01:21.9]} 20... Bxc3
{[%clk 0:01:58.8]} 21. Qxc3 {[%clk 0:01:21.7]} 21... Qxe2 {[%clk 0:01:58.4]} 22.
Rg3+ {[%clk 0:01:18]} 1-0

[Event "*** Titled Tuesday Blitz"]
[Site "Chess.com"]
[Date "2021.04.20"]
[Round "6"]
[White "Hangar-18"]
[Black "poppy73"]
[Result "1-0"]
[WhiteElo "2342"]
[BlackElo "2197"]
[TimeControl "180+1"]
[EndTime "11:02:25 PDT"]
[Termination "Hangar-18 won by resignation"]

1. c4 {[%clk 0:03:00.9]} 1... Nf6 {[%clk 0:02:59.5]} 2. Nc3 {[%clk 0:03:01]}
2... g6 {[%clk 0:03:00]} 3. e4 {[%clk 0:03:00.2]} 3... Bg7 {[%clk 0:03:00.5]} 4.
d4 {[%clk 0:03:00.7]} 4... d6 {[%clk 0:03:00]} 5. Nf3 {[%clk 0:03:01]} 5... O-O
{[%clk 0:03:00]} 6. Be2 {[%clk 0:03:01.4]} 6... e5 {[%clk 0:03:00.6]} 7. d5
{[%clk 0:03:01.7]} 7... a5 {[%clk 0:02:59.5]} 8. Bg5 {[%clk 0:03:00.3]} 8... Na6
{[%clk 0:02:57.4]} 9. Nd2 {[%clk 0:02:58]} 9... h6 {[%clk 0:02:56.7]} 10. Be3
{[%clk 0:02:56.2]} 10... Nd7 {[%clk 0:02:50.8]} 11. Qc2 {[%clk 0:02:52.9]} 11...
Nb4 {[%clk 0:02:42.8]} 12. Qb1 {[%clk 0:02:49.1]} 12... f5 {[%clk 0:02:40.4]}
13. exf5 {[%clk 0:02:46.4]} 13... gxf5 {[%clk 0:02:40.3]} 14. f4 {[%clk
0:02:46.3]} 14... e4 {[%clk 0:02:33.9]} 15. a3 {[%clk 0:02:44.2]} 15... Na6
{[%clk 0:02:17.3]} 16. Qc2 {[%clk 0:02:44.1]} 16... Nac5 {[%clk 0:02:14.4]} 17.
O-O-O {[%clk 0:02:43.2]} 17... a4 {[%clk 0:02:12.3]} 18. g4 {[%clk 0:02:42.1]}
18... fxg4 {[%clk 0:01:52.1]} 19. Bxg4 {[%clk 0:02:40]} 19... Nd3+ {[%clk
0:01:48.6]} 20. Kb1 {[%clk 0:02:38.3]} 20... N7c5 {[%clk 0:01:46.6]} 21. Bxc8
{[%clk 0:02:32.1]} 21... Rxc8 {[%clk 0:01:44.6]} 22. Ndxe4 {[%clk 0:02:28.9]}
22... Nxe4 {[%clk 0:01:43.5]} 23. Qxd3 {[%clk 0:02:26.1]} 23... Nxc3+ {[%clk
0:01:41.6]} 24. bxc3 {[%clk 0:02:23.7]} 24... Kh8 {[%clk 0:01:33.3]} 25. Rhg1
{[%clk 0:02:20]} 25... Rf7 {[%clk 0:01:30.5]} 26. Rg6 {[%clk 0:02:11.8]} 26...
Qf8 {[%clk 0:01:22.5]} 27. Rdg1 {[%clk 0:02:11.3]} 27... Re8 {[%clk 0:01:21.2]}
28. Bd4 {[%clk 0:02:08.7]} 28... Ree7 {[%clk 0:01:17.7]} 29. Rxh6+ {[%clk
0:02:07.1]} 1-0

[Event "*** Titled Tuesday Blitz"]
[Site "Chess.com"]
[Date "2021.04.20"]
[Round "6"]
[White "FairChess_on_YouTube"]
[Black "bocah_sakit"]
[Result "1-0"]
[WhiteElo "3021"]
[BlackElo "2823"]
[TimeControl "180+1"]
[EndTime "11:02:32 PDT"]
[Termination "FairChess_on_YouTube won by resignation"]

1. Nf3 {[%clk 0:03:00.9]} 1... Nf6 {[%clk 0:02:43.4]} 2. b3 {[%clk 0:03:00.7]}
2... g6 {[%clk 0:02:44.3]} 3. Bb2 {[%clk 0:03:00.7]} 3... Bg7 {[%clk 0:02:44.9]}
4. c4 {[%clk 0:03:00.5]} 4... O-O {[%clk 0:02:45]} 5. g3 {[%clk 0:03:00.7]} 5...
d6 {[%clk 0:02:45.6]} 6. d4 {[%clk 0:03:00.1]} 6... Nc6 {[%clk 0:02:44.8]} 7. d5
{[%clk 0:02:58.1]} 7... Nb8 {[%clk 0:02:41.2]} 8. Bg2 {[%clk 0:02:57.2]} 8... c6
{[%clk 0:02:41.7]} 9. dxc6 {[%clk 0:02:52.1]} 9... Nxc6 {[%clk 0:02:41.6]} 10.
O-O {[%clk 0:02:51.9]} 10... Bg4 {[%clk 0:02:40.3]} 11. h3 {[%clk 0:02:48.9]}
11... Bxf3 {[%clk 0:02:40.8]} 12. Bxf3 {[%clk 0:02:48.5]} 12... Nd7 {[%clk
0:02:41.7]} 13. Bxg7 {[%clk 0:02:47.6]} 13... Kxg7 {[%clk 0:02:42.6]} 14. Nc3
{[%clk 0:02:47.2]} 14... Nde5 {[%clk 0:02:43]} 15. Bg2 {[%clk 0:02:46.6]} 15...
a5 {[%clk 0:02:39.2]} 16. Rc1 {[%clk 0:02:39.4]} 16... Nd7 {[%clk 0:02:15.8]}
17. Qd2 {[%clk 0:02:38.8]} 17... Nc5 {[%clk 0:02:16]} 18. Rfd1 {[%clk
0:02:38.2]} 18... a4 {[%clk 0:02:12.8]} 19. Qb2 {[%clk 0:02:04.1]} 19... axb3
{[%clk 0:02:11.9]} 20. Ne4+ {[%clk 0:01:56.7]} 20... Kg8 {[%clk 0:01:59.7]} 21.
Nxc5 {[%clk 0:01:56.6]} 21... Rxa2 {[%clk 0:01:33.1]} 22. Qxb3 {[%clk
0:01:55.7]} 22... Rxe2 {[%clk 0:01:33.7]} 23. Nxb7 {[%clk 0:01:49.6]} 23... Qc7
{[%clk 0:01:33.5]} 24. Qf3 {[%clk 0:01:47.4]} 1-0